[Event "German Bundesliga 2024-25"]
[Site "Germany"]
[Date "2024.12.01"]
[Round "4.12"]
[White "Nisipeanu, Liviu-Dieter"]
[Black "Bacrot, Etienne"]
[Result "1/2-1/2"]
[Annotator "TA"]
[ECO "C02"]
[WhiteElo "2596"]
[BlackElo "2653"]
[PlyCount "77"]
[EventDate "2024.09.27"]
[EventType "team-tourn"]
[EventCountry "GER"]
[SourceTitle "playchess.com"]
[Source "ChessBase"]
[SourceQuality "1"]
[WhiteTeam "TU Dresden"]
[BlackTeam "Baden-Baden"]
[TimeControl "40/5400+30:1800+30"]

{[%evp 9,77,-43,-21,-21,-24,-16,-15,-23,-10,-24,-27,-31,13,0,0,0,0,0,0,-27,-25,-50,-23,-49,-37,-50,-39,-81,-65,-84,-85,-71,0,0,0,0,0,0,191,293,239,0,0,0,0,0,0,0,0,0,0,0,0,0,0,0,0,0,0,0,0,0,0,0,0,0,0,0,0,0]} 1. e4 {[%emt 0:00:05]} e6 {[%emt 0:00:04]} 2. d4 {[%emt 0:00:17]} d5 {[%emt 0:00:05]} 3. e5 {[%emt 0:00:17]} c5 {[%emt 0:00:06]} 4. Nf3 {[%emt 0:00:04]} Nc6 {[%emt 0:00:55]} 5. Bd3 {[%emt 0:00:06]} Nxd4 {[%emt 0:04:02]} 6. Nxd4 {[%emt 0:00:07]} cxd4 {[%emt 0:00:02]} 7. O-O {[%emt 0:01:45]} Ne7 {[%emt 0:16:51]} 8. Nd2 {[%emt 0:26:28]} Nc6 {[%emt 0:09:13]} 9. Re1 {[%emt 0:00:22]} Bd7 {[%emt 0:06:59]} 10. a3 {[%emt 0:01:04]} a5 {[%emt 0:00:26]} 11. Qg4 {[%emt 0:07:42][%mdl 1024] White has compensation.} h5 {[%emt 0:05:03]} 12. Qg3 {[%emt 0:01:27]} h4 {[%emt 0:06:50]} 13. Qg4 {[%emt 0:03:53]} h3 {[%emt 0:00:07]} 14. Nf3 {[%emt 0:01:30] Prevents Qh4} hxg2 {[%emt 0:02:04]} 15. Bf4 {[%emt 0:08:13]} a4 {[%emt 0:07:00]} (15... Qb6 {looks sharper.} 16. b4 axb4 17. axb4 Rc8) 16. Kxg2 {[%emt 0:04:12]} Qb6 {[%emt 0:04:22][%cal Of8e7]} 17. Rab1 {[%emt 0:03:29]} Na5 {[%emt 0:00:14]} 18. Ng5 {[%emt 0:02:41]} Bb5 $1 {[%emt 0:07:11]} 19. Bg6 {[%emt 0:19:01]} fxg6 {[%emt 0:06:27]} 20. Nxe6 {[%emt 0:00:07] [#]} g5 {[%emt 0:01:36]} 21. Bxg5 $11 {[%emt 0:00:50][%cal Og4f5]} Bd7 {[%emt 0:01:11]} 22. Nxg7+ {[%emt 0:01:08]} Bxg7 {[%emt 0:00:06]} 23. e6 {[%emt 0:00:03][%cal Og4f5] White wants to mate with Qf5! Really sharp!} Bb5 $2 {[%emt 0:03:27]} (23... Bc6 $11 {and Black stays safe.} 24. Qf5 Qc7 25. Qg6+ Kf8 26. e7+ Kg8 27. Qe6+ Kh7 28. Qf5+ Kg8 29. Qe6+ Kh7 30. Qf5+ Kg8 31. Qe6+) 24. Qf5 $18 {[%emt 0:04:10]} Qc7 {[%emt 0:03:12] [#] Wards off Qf7+} 25. Qg6+ $2 {[%emt 0:08:34]} (25. h4 $1 $18 {Strongly threatening Qg6+.} Rh6 (25... Nc4 $2 26. Qg6+ Kf8 27. e7+ Kg8 28. Qe6+ Kh7 29. Qf5+ Kg8 30. Qxd5+ Kh7 31. Qf5+ Kg8 32. Qxb5 $18) 26. Rbd1 (26. Bxh6 Bxh6 27. Qg6+ Ke7 $11)) 25... Kf8 $11 {[%emt 0:00:02] The position is equal.} 26. e7+ {[%emt 0:00:12]} Kg8 {[%emt 0:00:04]} 27. Qe6+ {[%emt 0:00:07]} (27. e8=B Qxh2+ 28. Kf3 Rh3+ 29. Kg4 Qg2+ 30. Kf5 Qxf2+ (30... Rf3+ $2 31. Bf4 $19) 31. Ke6 Ra6+ (31... Rxe8+ $2 32. Kd6 $19) (31... Bxe8 {gets mated.} 32. Re3 Rxe3+ 33. Bxe3 Qxe3+ 34. Kd6 Nc4+ 35. Kxd5 Qe5+ 36. Kxc4 Qb5#) 32. Ke7 Qf8+ 33. Kd8 Rxg6 34. Re7 Nc6+ (34... Rxg5 35. Re6 Bxe8 36. Rbe1 Bf7+ 37. Kc7 Bxe6 38. Kb6 Qd8+ 39. Ka7 Bf8 40. b4 axb3 41. Rxe6 Bc5+ 42. Rb6 Bxb6#) 35. Kc7 Nxe7 (35... Rxg5 {leads to mate.} 36. Re6 Rh6 37. Rbe1 Be5+ 38. R1xe5 Nxe5 39. Rxh6 Qxh6 40. Bxb5 Rg7+ 41. Kb8 Nc6+ 42. Ka8 Qd6 43. Bxc6 bxc6 44. c3 Qf8#) (35... Rxg5 36. Re6 Be5+ 37. Kb6 d3 38. c3 Bc4 39. Rf1 Qxf1 40. Bxc6 Qf2+ 41. Kxb7 Qxb2+ 42. Kc8 Qb8+ 43. Kd7 Rh7+ 44. Re7 Qc7+ 45. Ke8 Rxe7#)) 27... Kh7 {[%emt 0:00:03]} 28. Qf5+ {[%emt 0:00:07]} Kg8 {[%emt 0:00:03]} 29. Qe6+ {[%emt 0:00:07]} Kh7 {[%emt 0:00:01]} 30. Qf5+ {[%emt 0:00:21]} Kg8 {[%emt 0:00:02]} 31. Qxd5+ {[%emt 0:00:57]} Kh7 {[%emt 0:00:03]} 32. Qe4+ {[%emt 0:02:20]} Kg8 {[%emt 0:00:09]} 33. Qe6+ {[%emt 0:00:08]} Kh7 {[%emt 0:00:04]} 34. Qe4+ {[%emt 0:00:21]} Kg8 {[%emt 0:00:04]} 35. Qe6+ {[%emt 0:00:03]} Kh7 {[%emt 0:00:07]} 36. Qf5+ {[%emt 0:00:03]} Kg8 {[%emt 0:00:05]} 37. Qd5+ {[%emt 0:00:44]} Kh7 {[%emt 0:00:17]} 38. Qf5+ {[%emt 0:02:15]} Kg8 {[%emt 0:00:52]} 39. Qd5+ {[%emt 0:02:00] Weighted Error Value: White=0.08 (flawless) /Black=0.30.  Loses game:     	---       	Black=1      Missed win:     	White=1     	---        Mistake:       	---       	Black=1      Inaccurate:     	White=3     	Black=2      OK:         	White=14    	Black=9      Best:        	White=5     	Black=4      Strong:       	---       	Black=1} 1/2-1/2

[Event "German Bundesliga 2024-25"]
[Site "Germany"]
[Date "2024.12.01"]
[Round "4.12"]
[White "Cheng, Bobby"]
[Black "Korobov, Anton"]
[Result "1/2-1/2"]
[Annotator "RC"]
[ECO "E15"]
[WhiteElo "2594"]
[BlackElo "2636"]
[PlyCount "45"]
[EventDate "2024.09.27"]
[EventType "team-tourn"]
[EventCountry "GER"]
[SourceTitle "playchess.com"]
[Source "ChessBase"]
[SourceQuality "1"]
[WhiteTeam "Werder Bremen"]
[BlackTeam "Viernheim"]
[TimeControl "40/5400+30:1800+30"]

1. d4 {[%emt 0:00:03]} Nf6 {[%emt 0:00:06]} 2. c4 {[%emt 0:00:04]} e6 {[%emt 0:00:09]} 3. Nf3 {[%emt 0:00:04]} b6 {[%emt 0:00:12]} 4. g3 {[%emt 0:00:18]} Ba6 {[%emt 0:00:07]} 5. b3 {[%emt 0:03:31]} Bb4+ {[%emt 0:00:10]} 6. Bd2 {[%emt 0:00:04]} Be7 {[%emt 0:00:07]} 7. Bg2 {[%emt 0:00:22]} d5 {[%emt 0:00:06]} 8. Ne5 {[%emt 0:07:51]} O-O {[%emt 0:01:38]} 9. O-O {[%emt 0:00:28]} c6 {[%emt 0:00:39]} 10. Bc3 {[%emt 0:03:36]} Nfd7 {[%emt 0:02:22]} 11. Nd3 {[%emt 0:04:40]} dxc4 {[%emt 0:01:08]} 12. Nb4 {[%emt 0:01:06]} cxb3 {[%emt 0:21:17]} 13. Nxa6 {[%emt 0:01:14]} Nxa6 {[%emt 0:02:29]} 14. Bxc6 {[%emt 0:00:51]} Rc8 {[%emt 0:01:39]} 15. Bb7 {[%emt 0:06:25]} Rxc3 {[%emt 0:00:34]} 16. Nxc3 {[%emt 0:00:21]} b2 {[%emt 0:00:06]} 17. Rb1 {[%emt 0:03:09]} Qc7 {[%emt 0:00:13]} 18. Bxa6 {[%emt 0:01:47]} Qxc3 {[%emt 0:03:30]} 19. Qa4 {[%emt 0:13:09]} Nf6 {[%emt 0:07:30]} 20. Rfd1 {[%emt 0:03:58]} Ne4 {[%emt 0:05:54]} 21. Qb5 {[%emt 0:17:59]} Bb4 {[%emt 0:06:43]} 22. Qd3 {[%emt 0:00:29]} Nd2 {[%emt 0:00:25]} 23. Qxc3 {[%emt 0:00:59]} 1/2-1/2

[Event "German Bundesliga 2024-25"]
[Site "Germany"]
[Date "2024.12.01"]
[Round "4.12"]
[White "Beerdsen, Thomas"]
[Black "Sedlak, Nikola"]
[Result "1-0"]
[Annotator "TA"]
[ECO "C54"]
[WhiteElo "2508"]
[BlackElo "2444"]
[PlyCount "77"]
[EventDate "2024.09.27"]
[EventType "team-tourn"]
[EventCountry "GER"]
[SourceTitle "playchess.com"]
[Source "ChessBase"]
[SourceQuality "1"]
[WhiteTeam "Muelheim Nord"]
[BlackTeam "Deggendorf"]
[TimeControl "40/5400+30:1800+30"]

{[%evp 12,77,27,11,49,47,45,55,56,61,52,55,76,41,60,37,43,33,54,50,60,46,39,19,32,14,20,10,22,32,70,69,66,54,78,50,46,60,72,39,64,42,86,62,69,66,72,69,116,106,107,73,92,84,114,87,115,81,72,78,36,36,36,0,49,22,803,778]} 1. e4 {[%emt 0:00:03]} e6 {[%emt 0:00:32]} 2. d4 {[%emt 0:00:39]} d5 {[%emt 0:00:09]} 3. Nc3 {[%emt 0:00:06]} dxe4 {[%emt 0:01:03]} 4. Nxe4 {[%emt 0:00:06]} Be7 {[%emt 0:00:19]} 5. Bd3 {[%emt 0:01:25]} Nf6 {[%emt 0:00:12]} 6. Nxf6+ {[%emt 0:03:47]} Bxf6 {[%emt 0:00:29]} 7. Nf3 {[%emt 0:00:17]} Bd7 {[%emt 0:03:04][%cal Oc7c5]} (7... c5 $5) 8. O-O {[%emt 0:02:57]} Bc6 {[%emt 0:01:07]} 9. Re1 {[%emt 0:03:14]} Bxf3 {[%emt 0:00:41] White is slightly better.} 10. Qxf3 {[%emt 0:00:07]} c6 $1 {[%emt 0:00:03]} 11. c3 {[%emt 0:02:59]} O-O {[%emt 0:02:37]} 12. Bf4 {[%emt 0:02:41] White has more active pieces. The black rooks are passive.} Nd7 {[%emt 0:04:20]} 13. Rad1 {[%emt 0:03:17]} Re8 {[%emt 0:02:14]} 14. Bb1 {[%emt 0:02:40]} Nf8 {[%emt 0:07:58]} 15. g3 {[%emt 0:02:27]} Bg5 {[%emt 0:02:28]} 16. Bxg5 {[%emt 0:02:29]} Qxg5 {[%emt 0:03:13]} 17. Re4 {[%emt 0:00:05]} Qb5 {[%emt 0:05:23]} 18. Rd2 {[%emt 0:02:07][%cal Bd1d2,Bd2e2,Be2e1][%mdl 32]} Rad8 {[%emt 0:00:49]} 19. Rde2 {[%emt 0:05:50]} c5 {[%emt 0:12:33]} 20. Re5 {[%emt 0:07:31]} Qa4 {[%emt 0:02:51]} 21. Bc2 {[%emt 0:05:36]} Qxa2 {[%emt 0:03:59]} 22. Rxc5 {[%emt 0:01:27]} ({But not} 22. Qxb7 cxd4 23. cxd4 Rxd4 $15) 22... Re7 {[%emt 0:03:23]} 23. Qf4 {[%emt 0:13:27]} Qa6 {[%emt 0:02:19]} 24. Re1 {[%emt 0:05:53]} Qd6 {[%emt 0:11:10]} 25. Qh4 {[%emt 0:03:30]} (25. Qxd6 {simplifies} Rxd6 26. f4 g6 27. g4) 25... h6 {[%emt 0:02:40]} 26. Rh5 {[%emt 0:03:23]} Rdd7 {[%emt 0:02:32]} 27. Qg4 {[%emt 0:04:46]} Kh8 {[%emt 0:02:15]} 28. Ree5 {[%emt 0:00:42]} f6 {[%emt 0:02:48] Black is weak on the light squares} 29. Re3 {[%emt 0:03:32]} b6 {[%emt 0:01:30]} (29... f5 $14 30. Qe2 f4) 30. Qf3 $16 {[%emt 0:02:01]} Rd8 {[%emt 0:07:09][%cal Bd7d8,Bd8f8,Bf8f6][%mdl 32]} 31. Rh4 {[%emt 0:05:47]} f5 {[%emt 0:02:18]} 32. Qh5 {[%emt 0:02:39]} Nh7 {[%emt 0:01:39][%cal Bf8h7,Bh7g5,Bg5f7][%mdl 32]} 33. Re5 $40 {[%emt 0:04:26][%mdl 128] Black is in trouble.} Rf8 {[%emt 0:05:38]} 34. Qe2 {[%emt 0:01:54]} Ng5 {[%emt 0:01:05]} 35. Rh5 {[%emt 0:00:26] [#] Strongly threatening f4.} Rf6 {[%emt 0:00:49]} 36. f4 {[%emt 0:02:31]} Nf7 {[%emt 0:00:19]} 37. Rh3 {[%emt 0:00:34]} g6 {[%emt 0:01:15]} ({Don't go for} 37... Nxe5 $2 38. fxe5 Qd5 39. exf6 $18) (37... Rg6 $11) 38. g4 {[%emt 0:00:32][%cal Bg3g4,Bg4g5][%mdl 32]} Qc7 $2 {[%emt 0:00:25][%mdl 8192] [#]} (38... fxg4 $11 39. Qxg4 Re8) 39. g5 $1 {[%emt 0:00:32] Weighted Error Value: White=0.14 (very precise) /Black=0.17 (very precise) .  Loses game:     	---       	Black=1      Mistake:       	---       	Black=2      Inaccurate:     	White=6     	Black=4      OK:         	White=7     	Black=10     Strong:       	White=1     	Black=1} 1-0

[Event "German Bundesliga 2024-25"]
[Site "Germany"]
[Date "2024.12.01"]
[Round "4.13"]
[White "Amin, Bassem"]
[Black "Van Foreest, Lucas"]
[Result "0-1"]
[Annotator "TA"]
[ECO "D02"]
[WhiteElo "2647"]
[BlackElo "2520"]
[PlyCount "90"]
[EventDate "2024.09.27"]
[EventType "team-tourn"]
[EventCountry "GER"]
[SourceTitle "playchess.com"]
[Source "ChessBase"]
[SourceQuality "1"]
[WhiteTeam "Viernheim"]
[BlackTeam "Werder Bremen"]
[TimeControl "40/5400+30:1800+30"]

{[%evp 22,90,18,8,13,12,16,0,0,0,0,0,7,0,30,-93,-98,-152,-155,-152,-152,-271,-259,-266,-284,-280,-251,-254,-252,-248,-256,-424,-430,-404,-405,-667,-693,-653,-523,-494,-520,-528,-525,-483,-480,-660,-645,-727,-658,-768,-760,-775,-769,-747,-685,-1377,-939,-831,-808,-985,-974,-990,-990,-990,-990,-983,-980,-971,-950,-956,-895]} 1. Nf3 {[%emt 0:00:44]} d5 {[%emt 0:00:13]} 2. g3 {[%emt 0:00:11]} g6 {[%emt 0:00:02]} 3. Bg2 {[%emt 0:05:42]} Bg7 {[%emt 0:00:04]} 4. d4 {[%emt 0:01:42]} Nf6 {[%emt 0:00:04]} 5. O-O {[%emt 0:04:41]} O-O {[%emt 0:00:03]} 6. a4 {[%emt 0:00:06] D02: 1 d4 d5 2 Nf3 sidelines, including 2...Nf6 3 g3 and 2...Nf6 3 Bf4.} c5 {[%emt 0:04:17]} 7. dxc5 {[%emt 0:03:10]} Na6 {[%emt 0:01:01]} 8. a5 {[%emt 0:01:23]} Ne4 $146 {[%emt 0:05:59]} ({Predecessor:} 8... Nxc5 9. Nc3 Bg4 10. Be3 Rc8 11. Bd4 Bxf3 12. exf3 e6 13. f4 a6 14. Re1 Ne8 {½-½ Mamedyarov,S (2733)-Svidler,P (2698) London TechM GCL rapid 2024 (3.1)}) 9. Nfd2 {[%emt 0:35:32]} Naxc5 {[%emt 0:07:04]} 10. Nxe4 {[%emt 0:00:09]} Nxe4 {[%emt 0:03:32]} 11. Nd2 {[%emt 0:00:26]} Nf6 {[%emt 0:12:53]} 12. e4 {[%emt 0:01:32]} Be6 {[%emt 0:02:35]} 13. c3 {[%emt 0:12:07]} Qc7 {[%emt 0:03:59]} 14. Re1 {[%emt 0:02:11]} Rfd8 {[%emt 0:01:08]} 15. Qa4 {[%emt 0:00:59]} Rac8 {[%emt 0:04:31]} 16. exd5 {[%emt 0:00:34]} Bxd5 {[%emt 0:00:09]} 17. Nf3 {[%emt 0:00:07]} Nd7 {[%emt 0:06:11]} 18. Qh4 {[%emt 0:14:20]} (18. Rxe7 $11 Qd6 19. Re1) 18... Qc6 $17 {[%emt 0:02:45]} 19. Ng5 {[%emt 0:11:15] [#]} (19. Nd4 $142 Bxd4 20. Bxd5 Bxf2+ (20... Qxd5 21. Qxd4 Qh5 22. Qd1 $11) 21. Kxf2 Qxd5 22. Qxe7) 19... h6 $1 $17 {[%emt 0:15:59]} (19... Bxg2 20. Qxh7+ Kf8 21. Ne6+ fxe6 22. Bh6 $11) 20. Nxf7 {[%emt 0:00:32]} Bxg2 {[%emt 0:02:38]} (20... Kxf7 $2 21. Rxe7+ Kg8 (21... Kf8 $2 22. Bxh6 Bxh6 23. Rae1 $18) 22. Rxg7+ Kxg7 23. Qe7+ (23. Qxh6+ Kg8 $14) 23... Kh8 24. Be3 $18) 21. Nxd8 {[%emt 0:00:08]} (21. Nxh6+ $17 {was the only chance.} Bxh6 22. Bxh6) 21... Rxd8 $19 {[%emt 0:00:47]} 22. Qxe7 {[%emt 0:01:20] [#]} Bh3 $1 {[%emt 0:03:00]} 23. f3 {[%emt 0:00:01]} (23. Qxd8+ Bf8 24. f3 Qxf3) 23... Bf6 {[%emt 0:04:34]} 24. Qe4 {[%emt 0:01:23]} Ne5 {[%emt 0:00:01]} 25. Qxc6 {[%emt 0:01:23]} bxc6 {[%emt 0:00:02]} 26. Re3 $2 {[%emt 0:01:03]} (26. Kf2 {was called for.}) 26... Rd1+ $19 {[%emt 0:00:18]} 27. Kf2 {[%emt 0:00:01]} Bf1 {[%emt 0:05:30]} 28. Re4 {[%emt 0:01:09]} (28. b4 $142 Nd3+ 29. Rxd3 Bxd3 30. Bb2) 28... Nd3+ $19 {[%emt 0:00:16]} 29. Ke3 {[%emt 0:00:01]} Re1+ {[%emt 0:01:35]} 30. Kd2 {[%emt 0:00:10]} Rxe4 {[%emt 0:00:44]} ({Don't take} 30... Bg5+ 31. Kc2 Rxe4 (31... Rxc1+ $2 32. Rxc1 Nxc1 33. Rd4 $19) (31... Bxc1 32. Rxe1 Nxe1+ 33. Kxc1 $16) 32. Bxg5 Ne1+ 33. Kb3 Bc4+ (33... Nxf3 $2 34. Rxf1 Nxg5 35. Rd1 $19) 34. Ka4 Nxf3 35. Bxh6) 31. fxe4 {[%emt 0:00:02]} Bg5+ {[%emt 0:00:04]} 32. Kc2 {[%emt 0:00:25]} Nxc1 {[%emt 0:00:10]} ({But not} 32... Bxc1 33. b4 $19) 33. Ra4 {[%emt 0:00:30]} c5 {[%emt 0:02:26]} 34. a6 {[%emt 0:00:49]} Be3 {[%emt 0:00:22]} 35. e5 {[%emt 0:00:40]} Kf7 {[%emt 0:00:34]} 36. b3 {[%emt 0:00:26]} Ke6 {[%emt 0:00:21]} 37. Ra5 {[%emt 0:00:45]} Kxe5 {[%emt 0:00:35]} 38. c4 {[%emt 0:00:23]} Nd3 {[%emt 0:00:12]} 39. Rb5 {[%emt 0:00:39]} Nb4+ {[%emt 0:00:09]} 40. Kc3 {[%emt 0:00:16]} Bg2 {[%emt 0:01:31]} 41. Rb8 {[%emt 0:30:54]} Bd4+ {[%emt 0:30:03]} (41... Nxa6 42. Re8+ Kf6 43. Rxe3 $17) 42. Kd2 {[%emt 0:00:05]} Nxa6 {[%emt 0:00:04]} 43. Rh8 {[%emt 0:00:11]} h5 {[%emt 0:00:27]} 44. Rh7 {[%emt 0:00:03]} Nb4 {[%emt 0:00:09]} 45. Rxa7 {[%emt 0:00:05]} Be4 {[%emt 0:11:51]} 0-1

[Event "German Bundesliga 2024-25"]
[Site "Germany"]
[Date "2024.12.01"]
[Round "4.13"]
[White "Shirov, Alexei"]
[Black "Michalik, Peter"]
[Result "1/2-1/2"]
[Annotator "TA"]
[ECO "C67"]
[WhiteElo "2646"]
[BlackElo "2562"]
[PlyCount "61"]
[EventDate "2024.09.27"]
[EventType "team-tourn"]
[EventCountry "GER"]
[SourceTitle "playchess.com"]
[Source "ChessBase"]
[SourceQuality "1"]
[WhiteTeam "Baden-Baden"]
[BlackTeam "TU Dresden"]
[TimeControl "40/5400+30:1800+30"]

{[%evp 9,61,28,16,0,0,-10,22,15,15,12,20,23,17,8,15,0,0,0,0,0,30,0,4,0,0,0,0,0,13,5,11,13,7,0,0,0,13,12,15,13,12,5,10,14,10,13,5,8,8,8,22,0,0,0]} 1. e4 {[%emt 0:00:10]} e5 {[%emt 0:00:07]} 2. Nf3 {[%emt 0:02:29]} Nc6 {[%emt 0:00:08]} 3. Bb5 {[%emt 0:06:33]} Nf6 {[%emt 0:00:41]} 4. O-O {[%emt 0:03:50][%cal Bh1f1,Bf1e1,Be1e4][%mdl 32]} Nxe4 {[%emt 0:00:09]} 5. Re1 {[%emt 0:06:43]} Nd6 {[%emt 0:00:08]} 6. a4 {[%emt 0:00:04]} Be7 {[%emt 0:00:51]} 7. Nc3 {[%emt 0:00:04]} e4 {[%emt 0:00:22]} 8. Nxe4 {[%emt 0:00:36]} Nxe4 {[%emt 0:00:07]} 9. Rxe4 {[%emt 0:00:03]} d5 {[%emt 0:02:13]} 10. Re1 {[%emt 0:00:38]} O-O {[%emt 0:00:42]} 11. d4 {[%emt 0:06:06]} Bg4 {[%emt 0:06:11]} 12. c3 {[%emt 0:00:04]} Bd6 {[%emt 0:00:30]} 13. h3 {[%emt 0:00:12]} Bh5 {[%emt 0:00:28]} 14. Bd3 {[%emt 0:06:04]} Bg6 {[%emt 0:05:03]} 15. b4 {[%emt 0:12:07]} Re8 {[%emt 0:05:10] The position is equal.} 16. Rxe8+ {[%emt 0:01:15]} Qxe8 {[%emt 0:00:07]} 17. Bxg6 {[%emt 0:08:49]} hxg6 {[%emt 0:00:18]} 18. Ba3 {[%emt 0:00:10]} Qd7 {[%emt 0:06:09]} 19. b5 {[%emt 0:00:19] [#] Bxd6 would now be deadly.} Na5 {[%emt 0:00:53]} 20. Bxd6 {[%emt 0:00:07]} cxd6 {[%emt 0:00:11]} 21. Nd2 {[%emt 0:00:36]} Rc8 {[%emt 0:03:23]} 22. Rc1 {[%emt 0:05:39]} a6 {[%emt 0:02:52]} 23. Qf3 {[%emt 0:07:05]} Qf5 {[%emt 0:06:15]} 24. Qg3 {[%emt 0:00:59]} axb5 {[%emt 0:00:08]} 25. axb5 {[%emt 0:00:10]} Nc4 {[%emt 0:00:06]} 26. Nxc4 {[%emt 0:18:26]} dxc4 {[%emt 0:00:11]} 27. Qxd6 {[%emt 0:00:06]} Qxb5 {[%emt 0:00:05]} 28. Re1 {[%emt 0:00:19]} Re8 {[%emt 0:01:22] Dodges d5} 29. Rxe8+ {[%emt 0:06:16]} Qxe8 {[%emt 0:00:11]} 30. Kh2 {[%emt 0:02:40]} Qe1 {[%emt 0:01:19]} 31. Qd8+ {[%emt 0:01:37] An uneventful encounter.   Weighted Error Value: White=0.04 (flawless) /Black=0.05 (flawless) .  Inaccurate:     	White=1     	Black=2      OK:         	White=13    	Black=12} 1/2-1/2

[Event "German Bundesliga 2024-25"]
[Site "Germany"]
[Date "2024.12.01"]
[Round "4.13"]
[White "Stojanovic, Dalibor"]
[Black "Buckels, Valentin"]
[Result "1/2-1/2"]
[Annotator "TA"]
[ECO "A45"]
[WhiteElo "2446"]
[BlackElo "2448"]
[PlyCount "73"]
[EventDate "2024.09.27"]
[EventType "team-tourn"]
[EventCountry "GER"]
[SourceTitle "playchess.com"]
[Source "ChessBase"]
[SourceQuality "1"]
[WhiteTeam "Deggendorf"]
[BlackTeam "Muelheim Nord"]
[TimeControl "40/5400+30:1800+30"]

{[%evp 23,73,36,19,21,41,43,37,38,37,39,48,18,20,23,59,63,60,67,68,64,71,75,66,66,117,111,125,98,135,127,122,132,122,129,189,160,182,171,164,154,155,0,0,0,0,0,0,0,0,0,0,0]} 1. e4 {[%emt 0:00:03]} e5 {[%emt 0:00:16]} 2. Nf3 {[%emt 0:00:47]} Nc6 {[%emt 0:00:17]} 3. Bc4 {[%emt 0:00:54]} Bc5 {[%emt 0:00:18]} 4. d3 {[%emt 0:01:40]} Nf6 {[%emt 0:00:33]} 5. Nc3 {[%emt 0:03:26]} d6 {[%emt 0:01:26]} 6. Bg5 {[%emt 0:01:22]} h6 {[%emt 0:00:24]} 7. Bxf6 {[%emt 0:03:01]} Qxf6 {[%emt 0:00:20]} 8. Nd5 {[%emt 0:00:08]} Qd8 {[%emt 0:00:06]} 9. c3 {[%emt 0:00:11]} Ne7 {[%emt 0:03:28][%cal Bc6e7,Be7d5,Bd5f4,Bf4h3][%mdl 32]} 10. d4 {[%emt 0:05:11]} Nxd5 {[%emt 0:01:02]} 11. dxc5 {[%emt 0:01:52]} Nf4 {[%emt 0:00:06]} 12. g3 {[%emt 0:00:16]} Nh3 {[%emt 0:02:35]} 13. cxd6 {[%emt 0:04:47]} Qxd6 {[%emt 0:05:49]} 14. Qxd6 {[%emt 0:11:50]} cxd6 {[%emt 0:00:10]} 15. Nh4 {[%emt 0:00:10] White is slightly better.} Be6 {[%emt 0:18:16]} 16. Bb3 {[%emt 0:04:25]} Rd8 {[%emt 0:01:23]} 17. f3 {[%emt 0:08:31]} g5 {[%emt 0:13:50]} 18. Nf5 {[%emt 0:16:47]} Bxf5 {[%emt 0:09:52]} 19. exf5 {[%emt 0:00:09]} h5 {[%emt 0:00:04]} 20. Kf1 {[%emt 0:00:43]} Ke7 {[%emt 0:03:55]} 21. Kg2 {[%emt 0:02:13]} g4 {[%emt 0:00:07]} 22. fxg4 {[%emt 0:03:36]} hxg4 {[%emt 0:00:07]} 23. f6+ {[%emt 0:00:03]} Kd7 {[%emt 0:13:49]} (23... Kxf6 $14 24. Rhf1+ Kg6) 24. Bxf7 $16 {[%emt 0:11:02]} Rdf8 {[%emt 0:06:14]} 25. Bb3 {[%emt 0:02:03] White is more active.} Rxf6 {[%emt 0:02:01]} 26. Raf1 {[%emt 0:00:08] Dodges Rf2+} Rhf8 {[%emt 0:05:58]} 27. Rxf6 {[%emt 0:00:18]} Rxf6 {[%emt 0:00:01]} 28. Rf1 {[%emt 0:00:08] Wards off Rf2+} Rxf1 {[%emt 0:00:16]} (28... Ke7 $16 {was worth a try.}) 29. Kxf1 {[%emt 0:00:03][%mdl 4096] Endgame. KB-KN} Ng5 {[%emt 0:00:16]} 30. Bd1 {[%emt 0:04:06]} Nf3 {[%emt 0:00:03] [#]} 31. h3 $1 {[%emt 0:05:43][%mdl 512]} d5 {[%emt 0:03:46]} (31... Ke6 32. Kf2) 32. Bxf3 $2 {[%emt 0:09:01]} ({Much less strong is} 32. hxg4 Ng5 $16) ({White should play} 32. h4 $16) 32... gxf3 $11 {[%emt 0:00:04] The position is equal.} 33. Kf2 {[%emt 0:00:03]} e4 {[%emt 0:00:04]} 34. h4 {[%emt 0:00:02]} Ke6 {[%emt 0:00:52]} 35. h5 {[%emt 0:00:03]} Kf5 {[%emt 0:00:42]} 36. g4+ {[%emt 0:00:11]} Kg5 {[%emt 0:03:33]} (36... Kxg4 37. h6 e3+ (37... Kf4 $2 38. h7 $18) 38. Kxe3 $16) 37. Kg3 {[%emt 0:00:19] Weighted Error Value: White=0.11 (very precise) /Black=0.13 (very precise) .  Mistake:       	White=1     	Black=2      Inaccurate:     	White=1     	Black=2      OK:         	White=10    	Black=9      Best:        	White=2     	---} 1/2-1/2